Cogmind - Beta 14 @@@ ROGUE MODE // 2024.11.04 @ 21:01:00 Player: KURIIRI Result: Self-destructed Performance ------------- Evolutions (3) 1500 Regions Visited (9) 1800 Robots Destroyed (169) 845 Value Destroyed (7050) 7050 Prototype IDs (39) 780 Alien Tech Used (0) 0 Bonus (1690) 1690 TOTAL SCORE: 13665 Bonus ------- High Alert Combat Kills 1291 Follower Combat Kills 249 Entered Garrisons 200 Aligned with FarCom 300 Friendly Fire -350 Cogmind --------- Core Integrity 652/700 Matter 290/300 Energy 150/150 System Corruption 0% Temperature Cool (0) Movement Treading (160) Location -7/Factory Parts ------- > --- POWER (1) -------- Micro Nuclear Core > --- PROPULSION (4) --- Light Treads Light Treads Light Treads Light Treads > --- UTILITY (6) ------ Improved Heat Sink Large Storage Unit Advanced Terrain Scan Processor Advanced Targeting Computer Improved Medium Armor Plating > --- WEAPON (2) ------- Gatling Laser Chainsword > --- INVENTORY (15) --- Nuclear Core Light Nuclear Core Light Nuclear Core Improved Deuterium Engine Light Treads Gravmag System Improved Heat Sink Advanced Heat Sink Hardlight Generator Trap Reconfigurator Splice Drone Bay (6/6) Gatling Laser Heavy Rocket Launcher Peak State ------------ > --- POWER ------------ Nuclear Core > --- PROPULSION ------- Light Treads Light Treads Light Treads > --- UTILITY ---------- Improved Cooling System Large Storage Unit Improved Targeting Computer Hacking Suite Trap Reconfigurator > --- WEAPON ----------- Gatling Laser Gatling Laser > --- INVENTORY -------- Nuclear Core Light Nuclear Core Light Fission Core Light Treads Light Treads Light Treads Improved Medium Armor Plating Improved Medium Armor Plating Improved Medium Armor Plating Improved Medium Armor Plating Splice Drone Bay Gatling Laser Gatling Laser Heavy Rocket Launcher Chainsword [Rating: 38] Favorites ----------- Power Improved Ion Engine Engine Improved Ion Engine Power Core Micro Nuclear Core Propulsion Light Treads Treads Light Treads Utility Large Storage Unit Device Improved Cooling System Storage Large Storage Unit Processor Improved Targeting Computer Hackware Hacking Suite Protection Light Armor Plating Weapon Gatling Laser Energy Gun Gatling Laser Energy Cannon Advanced Beam Cannon Ballistic Gun Light Assault Rifle Ballistic Cannon Improved Light Cannon Launcher Mini Grenade Launcher Impact Weapon Hammer Slashing Weapon Chainsword Build | -11 -10 -10 -9 -9 -9 -8 -8 -8 -7 ------- Run | Yrd Mat Min Mat Min Exi Min Mat Gar Fac Slots Evolved 6 | . . . 2 . . . 2 . 2 Power . | . . . . . . . . . . Propulsion 2 | . . . . . . . 1 . 1 Utility 4 | . . . 2 . . . 1 . 1 Weapon . | . . . . . . . . . . Parts Attached 115 | 7 11 2 22 5 2 3 35 22 6 Power 10 | 1 1 . 4 . . . 3 1 . Engine 6 | 1 1 . 4 . . . . . . Core 4 | . . . . . . . 3 1 . Reactor . | . . . . . . . . . . Propulsion 19 | 2 . . 3 . 1 . 8 2 3 Treads 19 | 2 . . 3 . 1 . 8 2 3 Leg . | . . . . . . . . . . Wheel . | . . . . . . . . . . Hover . | . . . . . . . . . . Flight . | . . . . . . . . . . Utility 35 | 1 3 1 7 4 1 1 12 3 2 Device 10 | . 1 . 1 2 1 1 3 1 . Storage 3 | 1 2 . . . . . . . . Processor 4 | . . . 2 . . . 1 . 1 Hackware 1 | . . . . . . . 1 . . Protection 17 | . . 1 4 2 . . 7 2 1 Artifact . | . . . . . . . . . . Weapon 51 | 3 7 1 8 1 . 2 12 16 1 Energy Gun 18 | 1 . 1 1 . . . 6 9 . Energy Cannon 2 | . . . 1 . . . 1 . . Ballistic Gun 4 | 2 1 . . . . . 1 . . Ballistic Cannon 8 | . 3 . 3 . . . 2 . . Launcher 9 | . 3 . 2 1 . 1 1 1 . Special Weapon . | . . . . . . . . . . Impact Weapon 1 | . . . 1 . . . . . . Slashing Weapon 9 | . . . . . . 1 1 6 1 Piercing Weapon . | . . . . . . . . . . Special Melee Weapon . | . . . . . . . . . . Unidentified Prototypes 5 | . . . 1 1 . . 3 . . Corrupted Parts 3 | . . . . . . 3 . . . System Corruption 11 | . . . . . . 11 . . . Parts Lost 17 | . 1 . 5 2 . . 3 2 4 Power 3 | . 1 . 1 . . . 1 . . Propulsion 5 | . . . 2 . . . 1 . 2 Utility 6 | . . . 1 2 . . 1 . 2 Weapon 3 | . . . 1 . . . . 2 . Highest Loss Streak 2 | . 1 . 2 2 . . 2 2 2 To Critical Strikes 1 | . . . . . . . . 1 . Average Slot Usage (%) 97 | . 90 100 96 98 100 100 99 99 90 Engine 6 | . 11 14 9 11 11 11 2 . . Core 3 | . . . . . . . 6 9 7 Treads 25 | . 28 28 21 22 22 22 26 26 24 Device 8 | . 7 3 9 9 11 11 8 9 7 Storage 10 | . 14 14 11 11 11 11 9 9 7 Processor 8 | . . . 8 11 11 11 9 9 14 Hackware 1 | . . . . . . . 7 . . Protection 11 | . . 10 14 11 11 10 11 18 11 Energy Gun 9 | . 14 14 6 . . . 13 13 14 Energy Cannon 2 | . . . 1 11 11 11 . . . Ballistic Cannon 4 | . 8 14 10 . . . 2 . . Launcher 2 | . . . . 10 11 10 . . . Peak Build Rating 38 | 6 8 9 16 23 25 27 38 35 36 Average Rating 22 | 4 6 8 13 19 23 21 32 32 35 On Entrance 17 | . 6 8 9 16 23 21 27 35 32 Naked Turns . | . . . . . . . . . . Heaviest Build 50 | 11 29 32 39 43 43 40 50 50 45 Greatest Support 80 | 40 40 40 40 40 40 40 60 60 80 Greatest Overweight (x) 1 | . . . . 1 1 . 1 1 1 Average Overweight (x) . | . . . . . . . . . . Largest Inventory Capacity 15 | 8 15 15 15 15 15 15 15 15 15 Average Capacity 14 | 6 13 15 15 15 15 15 15 15 15 Most Carried 15 | 2 14 15 15 15 15 15 15 15 15 Average Carried 13 | 1 9 14 14 14 14 15 14 13 13 Final Capacity 15 | 8 15 15 15 15 15 15 15 15 15 Final Carried 15 | 2 14 15 15 15 15 15 15 13 13 Class Distribution -------------------- 60% | Mutant 36% | Scavenger-Mutant Dominant Class ---------------- Mutant | -10/Materials Mutant | -10/Mines Mutant | -9/Materials Mutant | -9/Mines Mutant | -9/Exiles Skirmisher | -8/Mines Mutant | -8/Materials Scavenger-Mutant | -8/Garrison Scavenger-Mutant | -7/Factory Resources | -11 -10 -10 -9 -9 -9 -8 -8 -8 -7 ----------- Run | Yrd Mat Min Mat Min Exi Min Mat Gar Fac Matter Collected 2127 | 239 218 123 518 97 . 30 614 233 55 Remotely . | . . . . . . . . . . Salvage Created 5562 | . 432 305 1280 92 . 88 1945 958 462 Parts 326 | . 33 22 81 10 . 5 98 56 21 Haulers Intercepted 10 | . 1 . 3 . . . 6 . . Recyclers Shooed 4 | . 4 . . . . . . . . Parts Field Recycled . | . . . . . . . . . . Retrieved Matter . | . . . . . . . . . . Parts Self-Destructed . | . . . . . . . . . . Prevented . | . . . . . . . . . . Kills | -11 -10 -10 -9 -9 -9 -8 -8 -8 -7 ------- Run | Yrd Mat Min Mat Min Exi Min Mat Gar Fac Combat Hostiles Destroyed 136 | . 12 10 28 4 . 2 44 27 9 Guns 84 | . 4 3 6 . . . 37 26 8 Cannons 28 | . 1 7 13 1 . 1 5 . . AOE 21 | . 7 . 8 3 . 1 1 1 . Classes Destroyed 17 | . 6 1 5 1 . . 2 2 . Worker 5 | . 1 . . 1 . . 3 . . Builder 3 | . . . 2 . . . 1 . . Tunneler 1 | . . . 1 . . . . . . Hauler 10 | . 1 . 3 . . . 6 . . Recycler 1 | . 1 . . . . . . . . Operator 2 | . . . 2 . . . . . . Watcher 12 | . 2 . 4 . . . 5 . 1 Swarmer 28 | . 5 3 3 3 . . 9 5 . Cutter 2 | . . . . . . . . 2 . Grunt 67 | . 7 5 17 1 . 1 24 7 5 Brawler 3 | . . . 1 . . 1 . . 1 Duelist 4 | . . . 1 . . . 1 2 . Sentry 28 | . . 2 6 . . . 8 9 3 Specialist 2 | . . . . . . . 2 . . Programmer 2 | . . . . . . . . 2 . Heavy 1 | . . . . . . . 1 . . Assembled 1 | . . . . 1 . . . . . Best Kill Streak 14 | . 6 3 9 2 . 2 14 6 4 Combat Bots Only 12 | . 5 3 7 2 . 2 12 6 4 Max Kills in Single Turn 3 | . 2 1 3 1 . 1 2 2 1 Gunslinging 1 | . . . . . . . 1 1 . Exploded 3 | . 2 . 3 1 . 1 1 1 . Melee . | . . . . . . . . . . Uniques/NPCs Destroyed . | . . . . . . . . . . Combat | -11 -10 -10 -9 -9 -9 -8 -8 -8 -7 -------- Run | Yrd Mat Min Mat Min Exi Min Mat Gar Fac Hostile Shots Fired 529 | . 36 37 82 24 . 2 156 63 129 Missed 157 | . 9 11 18 8 . . 39 27 45 Damage Taken 4822 | . 271 295 854 315 . 27 1847 549 664 Core 618 | . 74 65 129 24 . 13 219 46 48 Absorbed by Shields 100 | . . . . . . . 100 . . Redirected to Shielding 19 | . . . 19 . . . . . . Ignored by Resistances 66 | . . . . . . . 66 . . Regen/Repaired (Parts) 165 | . . . . . . . 165 . . Core Remaining (%) 63 | 100 . 44 . . . 58 . 51 . Volleys Fired 338 | . 24 24 101 10 . 2 114 42 21 Largest 2 | . 2 2 2 2 . 1 2 2 2 Hottest 160 | . 85 91 107 98 . 68 160 160 160 Shots Fired 600 | . 42 45 151 13 . 2 226 79 42 Gun 405 | . 32 21 58 . . . 175 77 42 Cannon 179 | . 4 24 90 10 . 1 50 . . Launcher 16 | . 6 . 3 3 . 1 1 2 . Special . | . . . . . . . . . . Kinetic 182 | . 17 24 79 . . . 62 . . Thermal 375 | . 19 21 42 10 . 1 163 77 42 Explosive 16 | . 6 . 3 3 . 1 1 2 . Electromagnetic 27 | . . . 27 . . . . . . Robot Hit Streak 25 | . 6 12 14 4 . 3 25 24 21 Robot Miss Streak 5 | . 4 2 5 4 . . 5 2 3 Penetration Max . | . . . . . . . . . . Secondary Targets 12 | . 2 . . . . . 7 3 . Max Gunslinging Chain 1 | . 1 . . . . . 1 1 . Shots Hit Robots 431 | . 22 33 92 7 . 2 176 61 38 Core Hits 326 | . 28 15 50 6 . 3 131 58 35 Critical Kills 1 | . 1 . . . . . . . . Critical Parts Destroyed 1 | . . . 1 . . . . . . Critical Strikes 15 | . 3 3 4 . . . 5 . . Burn 6 | . 2 . 1 . . . 3 . . Destroy 1 | . 1 . . . . . . . . Blast 7 | . . 3 2 . . . 2 . . Smash 1 | . . . 1 . . . . . . Melee Attacks 60 | . . . 12 . . . 2 45 1 Impact 12 | . . . 12 . . . . . . Slashing 48 | . . . . . . . 2 45 1 Piercing . | . . . . . . . . . . Sneak Attacks 1 | . . . 1 . . . . . . Combat Hostiles . | . . . . . . . . . . Follow-up Attacks . | . . . . . . . . . . Damage Inflicted 11867 | . 793 489 2290 291 . 179 5069 1796 960 Guns 7567 | . 226 239 676 . . . 3868 1598 960 Cannons 2014 | . 15 250 942 134 . 23 650 . . Explosions 2070 | . 550 . 534 140 . 150 498 198 . Melee 137 | . . . 137 . . . . . . Ramming 79 | . 2 . 1 17 . 6 53 . . Kinetic 1922 | . 90 250 746 . . . 836 . . Thermal 7548 | . 151 239 761 134 . 23 3682 1598 960 Explosive 1861 | . 550 . 325 140 . 150 498 198 . Electromagnetic 320 | . . . 320 . . . . . . Impact 137 | . . . 137 . . . . . . Slashing . | . . . . . . . . . . Piercing . | . . . . . . . . . . Highest Corruption 11 | . . . . . . 11 . . . Average Corruption 8 | . . . . . . 8 . . . Corruption Purged . | . . . . . . . . . . Corruption Blocked . | . . . . . . . . . . Overload Shots . | . . . . . . . . . . Overflow Damage 93 | . 10 . 64 12 . . 7 . . Projectiles 24 | . . . 17 . . . 7 . . Explosions 22 | . 10 . . 12 . . . . . Melee 47 | . . . 47 . . . . . . Knockbacks 9 | . . 1 2 1 . . 5 . . Impact 1 | . . . . 1 . . . . . Kinetic 6 | . . 1 1 . . . 4 . . Secondary 2 | . . . 1 . . . 1 . . Self-Inflicted Damage 96 | . . . 35 20 . . 41 . . Shots 3 | . . . 1 1 . . 1 . . Rammed 16 | . 1 1 3 3 . 1 7 . . Targets Rammed 17 | . 1 1 3 4 . 1 7 . . Kicked . | . . . . . . . . . . Crushed 1 | . . . . 1 . . . . . Highest Temperature 392 | . 104 345 264 150 . 30 315 213 392 Average Temperature 72 | . 30 109 73 50 . 15 67 50 123 Received Heat Transfer 1604 | . 90 126 381 . . 18 596 180 213 Effects 7 | . . 2 2 . . . 3 . . Energy Bleed 2 | . . 1 . . . . 1 . . Interference 4 | . . . 2 . . . 2 . . Damage (minor) 1 | . . 1 . . . . . . . Siege Activations . | . . . . . . . . . . Robots Corrupted 2 | . . . 2 . . . . . . Combat Hostiles 1 | . . . 1 . . . . . . Parts Fried 1 | . . . 1 . . . . . . Impact Corruptions 3 | . . . 3 . . . . . . Robots Melted 2 | . . . . . . . 1 . 1 Combat Hostiles 2 | . . . . . . . 1 . 1 Parts Melted 26 | . 4 1 2 . . . 12 4 3 Heat Transferred 15990 | . 592 629 1545 222 . 37 7690 3175 2100 Parts Sabotaged . | . . . . . . . . . . Parts Stolen . | . . . . . . . . . . Parts Stripped . | . . . . . . . . . . Power Chain Reactions 3 | . . . 3 . . . . . . Alert | -11 -10 -10 -9 -9 -9 -8 -8 -8 -7 ------- Run | Yrd Mat Min Mat Min Exi Min Mat Gar Fac Peak Influence 2017 | . 280 170 321 205 . 88 870 2017 1289 Initial 1058 | . . 28 . 83 . . 33 513 1058 Average 438 | . 150 72 170 73 . 87 342 1344 1146 Maximum Alert Level 5 | . 1 . 1 1 . . 3 5 4 Low Security (%) 46 | 100 52 100 69 97 . 100 19 . . Level 1 22 | . 47 . 30 2 . . 48 . . Level 2 9 | . . . . . . . 23 19 . Level 3 5 | . . . . . . . 8 7 30 Level 4 9 | . . . . . . . . 33 69 Level 5 6 | . . . . . . . . 39 . High Security . | . . . . . . . . . . Max Security . | . . . . . . . . . . Squads Dispatched 18 | . 4 1 3 . . . 8 . 2 Investigation 13 | . 4 1 3 . . . 3 . 2 Extermination . | . . . . . . . . . . Reinforcement 3 | . . . . . . . 3 . . Assault 2 | . . . . . . . 2 . . Garrison . | . . . . . . . . . . Intercept . | . . . . . . . . . . Searches Triggered . | . . . . . . . . . . Construction Impeded . | . . . . . . . . . . Haulers Reinforced . | . . . . . . . . . . Active Scanning Responses . | . . . . . . . . . . Cargo Convoy Interrupts . | . . . . . . . . . . Stealth | -11 -10 -10 -9 -9 -9 -8 -8 -8 -7 --------- Run | Yrd Mat Min Mat Min Exi Min Mat Gar Fac Distress Signals 11 | . 2 . 6 . . . 3 . . Communications Jammed . | . . . . . . . . . . Distress Signals . | . . . . . . . . . . Times Spotted 177 | . 15 10 36 9 . 2 62 31 12 Peak Tracking Total 7 | . 5 3 6 2 . 2 7 5 4 Tactical Retreats 4 | . . . . . . . 1 2 1 Traps | -11 -10 -10 -9 -9 -9 -8 -8 -8 -7 ------- Run | Yrd Mat Min Mat Min Exi Min Mat Gar Fac Traps Triggered 4 | . 2 . . 1 . . . 1 . Indirectly . | . . . . . . . . . . Trap Hack Attempts . | . . . . . . . . . . Triggered . | . . . . . . . . . . Disarmed . | . . . . . . . . . . Reprogrammed . | . . . . . . . . . . Reused 1 | . . . . . . . 1 . . Traps Reconfigurated 2 | . . . . . . . 2 . . Traps Extracted . | . . . . . . . . . . Installed . | . . . . . . . . . . Triggered 1 | . . . . . . . 1 . . Machines | -11 -10 -10 -9 -9 -9 -8 -8 -8 -7 ---------- Run | Yrd Mat Min Mat Min Exi Min Mat Gar Fac Machines Disabled 17 | . . . 1 . . . 4 12 . Max in Single Turn 3 | . . . 1 . . . 2 3 . Garrison Relay 8 | . . . . . . . . 8 . Phase Generator 1 | . . . . . . . . 1 . Machines Repaired . | . . . . . . . . . . Machines Dismantled . | . . . . . . . . . . Machines Sabotaged . | . . . . . . . . . . Overloaded Fab Kills . | . . . . . . . . . . Hacking | -11 -10 -10 -9 -9 -9 -8 -8 -8 -7 --------- Run | Yrd Mat Min Mat Min Exi Min Mat Gar Fac Machines Accessed 45 | . 6 1 11 2 2 . 14 4 5 Terminals 35 | . 5 1 10 . . . 10 4 5 Fabricators . | . . . . . . . . . . Repair Stations 2 | . . . . . . . 2 . . Recycling Units 2 | . 1 . 1 . . . . . . Scanalyzers 1 | . . . . . . . 1 . . Garrison Access 1 | . . . . . . . 1 . . Total Hacks 142 | . 18 1 38 2 2 . 53 7 21 Successful 79 | . 10 1 18 2 2 . 34 2 10 Failed 62 | . 8 . 20 . . . 18 5 11 Catastrophic 12 | . 2 . 1 . . . 4 2 3 Database Lockouts 1 | . . . . . . . 1 . . Manual 90 | . 15 1 26 . 1 . 28 1 18 Terminals 118 | . 17 1 37 . . . 35 7 21 Fabricators . | . . . . . . . . . . Repair Stations 5 | . . . . . . . 5 . . Recycling Units 2 | . 1 . 1 . . . . . . Scanalyzers 12 | . . . . . . . 12 . . Garrison Access 1 | . . . . . . . 1 . . Terminal Hacks 37 | . 6 . 13 2 2 . 7 2 5 Record 1 | . . . . . 1 . . . . Robot Analysis 10 | . 3 . 5 . . . 1 . 1 Prototype ID Bank 8 | . 3 . 3 . . . 2 . . Open Door 3 | . . . . 2 . . . 1 . Emergency Access Points 1 | . . . . . . . . 1 . Terminal Index 2 | . . . . . . . 1 . 1 Alert Level 2 | . . . 1 . . . . . 1 Unreport Threat 4 | . . . 2 . . . 1 . 1 Locate Traps 3 | . . . 2 . . . 1 . . Recall Assault 1 | . . . . . . . 1 . . Zone Layout 1 | . . . . . . . . . 1 Derelict Proto ID Bank 1 | . . . . . 1 . . . . Fabricator Hacks . | . . . . . . . . . . Repair Station Hacks 4 | . . . . . . . 4 . . Scan Component 2 | . . . . . . . 2 . . Repair 2 | . . . . . . . 2 . . Recycling Unit Hacks . | . . . . . . . . . . Scanalyzer 12 | . . . . . . . 12 . . Insert Component 5 | . . . . . . . 5 . . Analyze 7 | . . . . . . . 7 . . Garrison Access Hacks 1 | . . . . . . . 1 . . Unlock Access 1 | . . . . . . . 1 . . Unauthorized Hacks 25 | . 4 1 5 . . . 10 . 5 Terminals 23 | . 3 1 4 . . . 10 . 5 Assimilate 2 | . . . . . . . 2 . . Botnet 12 | . 3 . 3 . . . 3 . 3 Operators 2 | . . . 1 . . . 1 . . Skim 6 | . . . . . . . 4 . 2 Search 1 | . . 1 . . . . . . . Fabricators . | . . . . . . . . . . Repair Stations . | . . . . . . . . . . Recycling Units 2 | . 1 . 1 . . . . . . Tunnel 2 | . 1 . 1 . . . . . . Scanalyzers . | . . . . . . . . . . Garrison Access . | . . . . . . . . . . Data Cores Recovered 1 | . . . 1 . . . . . . Used . | . . . . . . . . . . Hacking Detections 34 | . 5 . 9 . . . 11 4 5 Full Trace Events 12 | . 1 . 4 . . . 4 1 2 Feedback Events . | . . . . . . . . . . Feedback Blocked . | . . . . . . . . . . Robot Schematics Acquired . | . . . . . . . . . . Robots Built . | . . . . . . . . . . Authchips . | . . . . . . . . . . Time . | . . . . . . . . . . Total Robot Build Rating . | . . . . . . . . . . Part Schematics Acquired 5 | . . . . . . . 5 . . Parts Built . | . . . . . . . . . . Authchips . | . . . . . . . . . . Time . | . . . . . . . . . . Total Part Build Rating . | . . . . . . . . . . Parts Repaired 2 | . . . . . . . 2 . . Time 82 | . . . . . . . 82 . . Parts Recycled . | . . . . . . . . . . Recycled Matter . | . . . . . . . . . . Retrieved Matter . | . . . . . . . . . . Retrieved Components . | . . . . . . . . . . Parts Scanalyzed 5 | . . . . . . . 5 . . Part Schematics Acquired 5 | . . . . . . . 5 . . Parts Damaged . | . . . . . . . . . . Bothacking | -11 -10 -10 -9 -9 -9 -8 -8 -8 -7 ------------ Run | Yrd Mat Min Mat Min Exi Min Mat Gar Fac Used RIF Installer . | . . . . . . . . . . Robots Hacked . | . . . . . . . . . . Non-combat . | . . . . . . . . . . Combat . | . . . . . . . . . . Robot Hacks Applied . | . . . . . . . . . . Relay Couplers Released 34 | . . . . . . . . 34 . Machine Destruction 34 | . . . . . . . . 34 . Fabnet Peak Effective % . | . . . . . . . . . . Robots Rewired . | . . . . . . . . . . Allies Hacked . | . . . . . . . . . . Hacks Repelled . | . . . . . . . . . . Allies | -11 -10 -10 -9 -9 -9 -8 -8 -8 -7 -------- Run | Yrd Mat Min Mat Min Exi Min Mat Gar Fac Total Allies 6 | . . . . 3 . . 1 2 . Largest Group 3 | . . . . 3 2 2 2 2 1 Highest-Rated Group 64 | . . . . 40 32 32 32 64 33 Highest-Rated Ally 39 | . . . . 16 16 16 16 39 33 Total Orders 8 | . . . . . . . 8 . . STAY 5 | . . . . . . . 5 . . FOLLOW 3 | . . . . . . . 3 . . Ally Attacks 73 | . . . . 16 . 4 10 41 2 Total Damage 743 | . . . . 102 . 34 144 463 . Kills 14 | . . . . 4 . 1 3 6 . Allies Corrupted . | . . . . . . . . . . Allies Melted . | . . . . . . . . . . Intel | -11 -10 -10 -9 -9 -9 -8 -8 -8 -7 ------- Run | Yrd Mat Min Mat Min Exi Min Mat Gar Fac Robot Analysis Total 10 | . 3 . 5 . . . 1 . 1 Derelict Logs Recovered 3 | . . 2 . 1 . . . . . Drone Launches 6 | . . . . 6 . . . . . Drone Recoveries 6 | . . . . 6 . . . . . Exploration | -11 -10 -10 -9 -9 -9 -8 -8 -8 -7 ------------- Run | Yrd Mat Min Mat Min Exi Min Mat Gar Fac Turns Passed 9489 | 79 832 822 1446 1238 497 190 2366 1422 597 Spaces Moved 4354 | 46 447 464 653 464 227 111 963 676 303 Core 5 | 5 . . . . . . . . . Treads 4349 | 41 447 464 653 464 227 111 963 676 303 Legs . | . . . . . . . . . . Wheels . | . . . . . . . . . . Hover . | . . . . . . . . . . Flight . | . . . . . . . . . . Fastest Speed 50 | 50 160 160 160 160 160 160 160 160 160 Average Speed 167 | 148 160 160 160 199 215 160 160 160 160 Slowest Speed 240 | 160 160 160 160 240 240 160 240 240 240 Overloaded Moves . | . . . . . . . . . . Propulsion Burnouts . | . . . . . . . . . . Robots Hopped . | . . . . . . . . . . Cave-ins Triggered . | . . . . . . . . . . Exploration Rate (%) 64 | 4 78 97 69 99 59 47 91 90 10 Regions Visited 9 Branch Regions 4 Pre-discovered Areas 6 | . 1 2 1 1 1 . . . . Known Exits Taken 2 | . . . . . . 1 1 . . Unknown Exits Taken 6 | 1 1 1 1 1 1 . . . . Scrap Searched 2 | . . 1 . 1 . . . . . Spaces Dug 29 | . . . 8 . . . 1 19 1 Terrain Destroyed 280 | . 22 . 41 30 . 10 60 116 1 Melee 25 | . . . 4 . . . 1 19 1 Projectile 9 | . . . 6 . . . 3 . . AOE 246 | . 22 . 31 30 . 10 56 97 . Terrain Rammed . | . . . . . . . . . . Walls Destroyed . | . . . . . . . . . . Machines Disabled . | . . . . . . . . . . Actions | -11 -10 -10 -9 -9 -9 -8 -8 -8 -7 --------- Run | Yrd Mat Min Mat Min Exi Min Mat Gar Fac Total 5820 | 54 519 500 886 762 236 119 1536 847 361 Wait 810 | . 25 5 64 265 . 3 373 48 27 Move 4345 | 45 446 463 652 463 226 110 962 675 303 Hop . | . . . . . . . . . . Pick Up 72 | 2 11 2 17 8 4 . 18 7 3 Fast Attach 21 | 6 3 1 4 . . . 4 1 2 Attach 18 | . . . 4 2 . . 6 3 3 Detach 1 | . . . . . . . 1 . . Swap 76 | 1 8 1 14 3 2 3 25 18 1 Drop 62 | . 1 3 15 7 4 . 24 8 . Fire 338 | . 24 24 101 10 . 2 114 42 21 Melee 60 | . . . 12 . . . 2 45 1 Ram . | . . . . . . . . . . Kick . | . . . . . . . . . . Crush 17 | . 1 1 3 4 . 1 7 . . Escape Stasis . | . . . . . . . . . . Rewire . | . . . . . . . . . . Trap . | . . . . . . . . . . Miscellaneous . | . . . . . . . . . . Route ------- -11/Scrapyard -10/Materials (discovered 5 exits: *Mat x3 / *Min x2) -10/Mines (discovered 2 exits: *Mat x2) -9/Materials (discovered 3 exits: *Mat x2 / *Min) -9/Mines (discovered 3 exits: *Mat x2 / *Exi) -9/Exiles -8/Mines (discovered 2 exits: *Mat x2) -8/Materials (discovered 4 exits: *Fac x3 / Gar) -8/Garrison (discovered 3 exits: *Fac x3) -7/Factory History --------- Turn | Location | Event 7 | -11/Scrapyard | Discovered new exit (range 14) 80 | -11/Scrapyard | Entered Materials 186 | -10/Materials | Discovered new exit (range 12) 302 | -10/Materials | Build established: Mutant 425 | -10/Materials | Discovered new exit (range 7) 480 | -10/Materials | Discovered new exit (range 16) 645 | -10/Materials | Discovered new exit (range 7) 813 | -10/Materials | Discovered new exit (range 4) 912 | -10/Materials | Entered Mines 971 | -10/Mines | Learned location of Storage (-7) 1066 | -10/Mines | Discovered new exit (range 5) 1221 | -10/Mines | Discovered new exit (range 9) 1250 | -10/Mines | Learned 4 Materials zone layouts 1298 | -10/Mines | Learned location of Zion (-7) 1472 | -10/Mines | Core integrity fell below 50% 1523 | -10/Mines | Found a hidden stash of uninstalled traps 1641 | -10/Mines | A weapon hastily lodged in a ceiling crevice suddenly fell to the ground 1734 | -10/Mines | Entered Materials 1734 | -9/Materials | Evolved 2 slots: Utility x2 1735 | -9/Materials | Identified exit to Materials 2241 | -9/Materials | Destroyed 7 combat bots 2611 | -9/Materials | Discovered exit to Materials (range 14) 2958 | -9/Materials | Build established: Scavenger-Mutant 3121 | -9/Materials | Discovered new exit (range 11) 3180 | -9/Materials | Entered Mines 3202 | -9/Mines | Assembled infested the area 3264 | -9/Mines | Build established: Mutant 3566 | -9/Mines | Received a Rocket Launcher from a helpful Derelict 3683 | -9/Mines | Assisted by bots powering up and referring to "LRC-V3" 3746 | -9/Mines | Discovered exit to Materials (range 7) 3825 | -9/Mines | Found the Drone Emporium 3831 | -9/Mines | Found Prototype Device 3832 | -9/Mines | Identified Splice Drone Bay 4093 | -9/Mines | Discovered exit to Materials (range 8) 4133 | -9/Mines | Met a Derelict who couldn't figure out how to use a Trap Extractor 4400 | -9/Mines | Deemed a non-threat by the Exiles lab entrance 4403 | -9/Mines | Discovered new exit (range 5) 4418 | -9/Mines | Entered Exiles 4418 | -9/Exiles | Accompanied by 2 allies 4508 | -9/Exiles | Met 8R-AWN 4544 | -9/Exiles | Met EX-HEX 4640 | -9/Exiles | Met EX-BIN 4667 | -9/Exiles | Aligned with FarCom system 4669 | -9/Exiles | Given EX-Vault access code 4729 | -9/Exiles | Opened EX-Vault 4744 | -9/Exiles | Found Trap Reconfigurator 4793 | -9/Exiles | Warned to stay clear of 0b10 Research branches 4844 | -9/Exiles | Met EX-DEC 4897 | -9/Exiles | Discovered new exit (range 14) 4915 | -9/Exiles | Left Exiles lab with Trap Reconfigurator 4915 | -9/Exiles | Entered Mines 4915 | -8/Mines | Accompanied by 2 allies 5078 | -8/Mines | Discovered exit to Materials (range 12) 5079 | -8/Mines | Discovered exit to Materials (range 11) 5101 | -8/Mines | System corruption reached 10% 5105 | -8/Mines | Entered Materials 5105 | -8/Materials | Accompanied by 2 allies 5105 | -8/Materials | Evolved 2 slots: Propulsion x1, Utility x1 5416 | -8/Materials | Repaired Imp. Light Armor Plating? 5459 | -8/Materials | Repaired Imp. Cooling System 6358 | -8/Materials | Discovered new exit (range 11) 6729 | -8/Materials | Build established: Scavenger-Mutant 6831 | -8/Materials | Central database locked down 6932 | -8/Materials | Discovered new exit (range 15) 7105 | -8/Materials | First assault squad dispatched 7250 | -8/Materials | Destroyed 12 combat bots 7345 | -8/Materials | Destroyed 8 combat bots 7454 | -8/Materials | Discovered new exit (range 15) 7470 | -8/Materials | Identified exit to Garrison 7471 | -8/Materials | Entered Garrison 7521 | -8/Garrison | Triggered checkpoint 7638 | -8/Garrison | Garrison Relay disabled 7746 | -8/Garrison | Phase Generator disabled 7845 | -8/Garrison | Garrison Relay disabled 7858 | -8/Garrison | Garrison Relay disabled 7963 | -8/Garrison | Triggered checkpoint 8089 | -8/Garrison | Rescued a captive Derelict 8099 | -8/Garrison | Rescued a captive Derelict 8120 | -8/Garrison | Discovered new exit (range 12) 8129 | -8/Garrison | Triggered checkpoint 8147 | -8/Garrison | Garrison Relay disabled 8300 | -8/Garrison | Triggered checkpoint 8311 | -8/Garrison | Triggered checkpoint 8407 | -8/Garrison | Triggered checkpoint 8472 | -8/Garrison | Garrison Relay disabled 8542 | -8/Garrison | Discovered new exit (range 10) 8710 | -8/Garrison | Discovered new exit (range 9) 8806 | -8/Garrison | Garrison Relay disabled 8893 | -8/Garrison | Entered Factory 8893 | -7/Factory | Accompanied by 1 ally 8893 | -7/Factory | Evolved 2 slots: Propulsion x1, Utility x1 9490 | -7/Factory | Self-destructed Last Messages --------------- 09475_ Connecting with Terminal... >>Layout(Zone) Retrieving Zone 6Q layout... Downloaded map data. >>Trojan(Botnet) Trojan loaded successfully. Testing... Terminal linked with 2 systems. Awaiting botnet instructions. >>Trojan(Skim) Trojan loaded successfully. Testing... Terminal linked with 1 system. Please expand to 3 more systems! >>Alert(Check) Current Alert Level: 4-D >>Alert(Purge) Purged threat record, alert level lowered. 09475_ ALERT: Suspicious activity at Terminal F010. Dispatching Investigation squad. Map ----- +----------------------------------------------------+ | ?????????????????????????????????????????????????? | | ?????????????????????????????????????????????????? | | ?????????????????????????????????????????????????? | | ?????????????????????????????????????????????????? | | ?????????????????????????????????????????????????? | | ?????????????????????????????????????????????????? | | ?????????????????????????????????????????????????? | | ?????????????????????????????????????????????????? | | ?????????????????????????????????????????????????? | | ???????# # g ?????????????????? | | ???????# # ?????????????????? | | ???????# # ^ ?????????????????? | | ???????# # g ?????????????????? | | ?##????# + ?????????????????? | | ? #????# # ?????????????????? | | ? #????# # ?????????????????? | | ? #????# # k ##?????????????????? | | ? #????# g # ku #??????????????????? | | ? #????# ### k####?????????????????? | | ? #????# #?#u #??#?????????????????? | | ? #???###############?#k #??#?????????????????? | | ? #???# ########## #??#?????????????????? | | ? #???# # # #??#?????????????????? | | ? #???# """ g# "" # #??#?????????????????? | | ? #???# """ # "T #u #??#?????????????????? | | ? #???# """ # "" # @ #??#?????????????????? | | ?###### # #k #??#?????????????????? | | ? ## """ # """ # r#??#?????????????????? | | ## """l # """ + #??#?????????????????? | | ## """ # """ # #??#?????????????????? | | ## # # #?#########??????????? | | ## ########## ### ??????????? | | ## #??????# # """" ""???#?????? | | #####+########## # """" """" #?????? | | # """" """" #?????? | | # """" """" #?????? | | % k + """" """" #?????? | | # """" """" #?????? | | # """" """" #?????? | | ###+######+########## # #?????? | | ?????# #????# # =#?????? | | ?????#! #????## ## [ [ #?????? | | ?????# #?????# ## #?????? | | ?????# """"""" #?????# ###############?????? | | ?????# """"""" #?????# % #???????????????????? | | ?????# """"""" #?????# #???????????????????? | | ?????# """"""" #?????# #???????????????????? | | ?????#?? ??#?????# #???????????????????? | | ?????????????????????# #???????????????????? | | ?????????????????????# ##############??????? | +----------------------------------------------------+ Best States ------------- Heat Dissipation 58 Energy Generation 15 Energy Capacity 280 Matter Stores 300 Matter Capacity 300 Sight Range 16 Terrain Scan Range 16 Terrain Scan Density 210 Armor Coverage 450 Resistance: TH 10 Propulsion Shielding 33 Evasion (%) 40 Targeting Accuracy 8 Recoil Reduction 4 Offensive Hacking 10 Item Schematics ----------------- Adv. Heat Sink | -8/Materials | Scanalyzed Imp. Medium Armor Plating | -8/Materials | Scanalyzed Lgt. Fission Core | -8/Materials | Scanalyzed Gatling Laser | -8/Materials | Scanalyzed Chainsword | -8/Materials | Scanalyzed Robot Schematics ------------------ None Fabricated ------------ Nothing Alien Tech Used ----------------- None Achievements -------------- None Challenges ------------ None Game ------ Seed ArmageddonMediumJammer Manual? 0 Play Time 01:05:45 Cumulative 164.5 hours Start 2024.11.04 @ 00:23:55 End 2024.11.04 @ 21:01:00 Sessions 5 Manual Loads 0 Difficulty Rogue Special Mode None Game No. 106 Rogue 70 Adventurer 36 Explorer 0 Win Type - Total 3 Types 2/0/0/1/0/0/0/0/0 Lore% 55 Gallery% 64 Achievement% 56 Wizard Run 0 Options --------- Layout 1 ASCII 0 Keyboard 0 Movement Numpad Keybinds 0 Fullscreen 1 Font 48/Smallcaps Map View 50x35 Zoom Use 0% Tactical HUD 1 Map Filters NONE Filters NONE Steam 1 RUN: 12fdd547-3339-471e-8764-e1a65af0cde5